Cogmind - Beta 13 @@@ ROGUE MODE // 2024.04.17 @ 15:10:44 Player: luckinvolved Result: Destroyed by X-62 Marksman with Gauss Rifle Performance ------------- Evolutions (3) 1500 Regions Visited (6) 1200 Robots Destroyed (43) 215 Value Destroyed (1063) 1063 Prototype IDs (2) 40 Alien Tech Used (0) 0 Bonus (668) 668 TOTAL SCORE: 4686 Bonus ------- High Alert Combat Kills 72 Follower Combat Kills 96 Entered DSFs 500 Cogmind --------- Core Integrity 0/700 Matter 189/500 Energy 92/100 System Corruption 2% Temperature Cool (0) Movement Core (350) Ox6 Location -7/DSF Parts ------- > --- POWER (1) -------- (None) > --- PROPULSION (4) --- (None) > --- UTILITY (6) ------ Medium Storage Unit High-capacity Matter Pod Improved Signal Interpreter Seismic Detector Improved Salvage Targeting Computer > --- WEAPON (2) ------- Gauss Rifle > --- INVENTORY (10) --- (None) Peak State ------------ > --- POWER ------------ Angular Momentum Engine > --- PROPULSION ------- Light Treads Light Treads Advanced Treads Medium Treads > --- UTILITY ---------- Medium Storage Unit Improved Signal Interpreter Improved Salvage Targeting Computer Improved Salvage Targeting Computer Improved Light Armor Plating > --- WEAPON ----------- Gauss Rifle Gauss Rifle > --- INVENTORY -------- Heavy Ion Engine Light Treads High-capacity Matter Pod Advanced Weight Redist. System Seismic Detector Heavy Ion Cannon Gauss Rifle EMP Blaster Shock Bomb Launcher [Rating: 39] Favorites ----------- Power Improved Ion Engine Engine Improved Ion Engine Propulsion Light Treads Treads Light Treads Utility Medium Storage Unit Device Seismic Detector Storage Medium Storage Unit Processor Improved Salvage Targeting Computer Protection Improved Light Armor Plating Weapon Assault Rifle Energy Gun Small Laser Energy Cannon Heavy Ion Cannon Ballistic Gun Assault Rifle Launcher EMP Blaster Impact Weapon Mace Build | -11 -10 -10 -9 -8 -7 -7 ------- Run | Yrd Mat Min Mat Mat Fac DSF Slots Evolved 6 | . . . 2 2 2 . Power . | . . . . . . . Propulsion 2 | . . . . 2 . . Utility 4 | . . . 2 . 2 . Weapon . | . . . . . . . Parts Attached 63 | 7 . 2 20 13 3 18 Power 8 | 1 . . 1 3 . 3 Engine 8 | 1 . . 1 3 . 3 Core . | . . . . . . . Reactor . | . . . . . . . Propulsion 13 | 2 . . 3 4 1 3 Treads 13 | 2 . . 3 4 1 3 Leg . | . . . . . . . Wheel . | . . . . . . . Hover . | . . . . . . . Flight . | . . . . . . . Utility 14 | 2 . 1 2 3 2 4 Device 7 | 1 . . 2 1 1 2 Storage 3 | 1 . 1 . . . 1 Processor 3 | . . . . 2 1 . Hackware . | . . . . . . . Protection 1 | . . . . . . 1 Artifact . | . . . . . . . Weapon 28 | 2 . 1 14 3 . 8 Energy Gun 1 | 1 . . . . . . Energy Cannon 1 | . . . . . . 1 Ballistic Gun 11 | 1 . 1 4 . . 5 Ballistic Cannon . | . . . . . . . Launcher 13 | . . . 8 3 . 2 Special Weapon . | . . . . . . . Impact Weapon 2 | . . . 2 . . . Slashing Weapon . | . . . . . . . Piercing Weapon . | . . . . . . . Special Melee Weapon . | . . . . . . . Unidentified Prototypes 2 | . . . 1 1 . . Corrupted Parts 2 | . . . . . . 2 System Corruption 2 | . . . . . . 2 Parts Lost 19 | . . . 1 . . 18 Power 3 | . . . . . . 3 Propulsion 5 | . . . . . . 5 Utility 6 | . . . 1 . . 5 Weapon 5 | . . . . . . 5 Highest Loss Streak 16 | . . . 1 . . 16 To Critical Strikes . | . . . . . . . Average Slot Usage (%) 98 | . 100 100 98 99 100 77 Engine 10 | . 14 14 11 8 7 6 Treads 27 | . 28 28 22 35 30 16 Device 20 | . 14 14 31 14 15 6 Storage 10 | . 14 14 11 9 7 8 Processor 6 | . . . . 12 23 20 Energy Gun 2 | . 14 12 . . . . Ballistic Gun 9 | . 14 15 14 1 . 6 Launcher 8 | . . . 7 16 15 4 Naked Turns . | . . . . . . . Heaviest Build 37 | 14 14 20 28 31 30 37 Greatest Support 90 | 40 40 40 40 82 90 90 Greatest Overweight (x) 3 | 3 . . . . . 2 Average Overweight (x) . | . . . . . . . Largest Inventory Capacity 10 | 8 8 10 10 10 10 10 Average Capacity 9 | 7 8 9 10 10 10 10 Most Carried 10 | 7 8 10 10 10 9 9 Average Carried 8 | 4 6 8 9 9 8 6 Final Capacity 10 | 8 8 10 10 10 10 10 Final Carried 10 | 7 6 10 10 10 9 . Class Distribution -------------------- 52% | Scavenger-Mutant 47% | Mutant Dominant Class ---------------- Mutant | -10/Materials Mutant | -10/Mines Scavenger-Mutant | -9/Materials Scavenger-Mutant | -8/Materials Mutant | -7/Factory Mutant | -7/DSF Resources | -11 -10 -10 -9 -8 -7 -7 ----------- Run | Yrd Mat Min Mat Mat Fac DSF Matter Collected 967 | 233 79 33 362 260 . . Remotely . | . . . . . . . Salvage Created 1979 | 39 179 . 1130 378 . 253 Parts 112 | 5 8 . 65 16 . 18 Haulers Intercepted 1 | . . . 1 . . . Recyclers Shooed . | . . . . . . . Parts Field Recycled . | . . . . . . . Retrieved Matter . | . . . . . . . Parts Self-Destructed . | . . . . . . . Prevented . | . . . . . . . Kills | -11 -10 -10 -9 -8 -7 -7 ------- Run | Yrd Mat Min Mat Mat Fac DSF Combat Hostiles Destroyed 26 | . 2 . 16 7 . 1 Guns 8 | . 2 . 5 . . 1 AOE 16 | . . . 11 5 . . Classes Destroyed 12 | 1 3 . 6 1 . 1 Worker 2 | . . . 2 . . . Builder 3 | . 1 . 2 . . . Tunneler 2 | 2 . . . . . . Hauler 1 | . . . 1 . . . Recycler 5 | . 1 . 3 1 . . Watcher 4 | . . . 4 . . . Swarmer 5 | . . . 2 3 . . Grunt 15 | . 2 . 11 2 . . Duelist 1 | . . . 1 . . . Sentry 3 | . . . 2 1 . . Specialist 1 | . . . . . . 1 Hunter 1 | . . . . 1 . . Best Kill Streak 9 | 2 2 . 9 4 . 1 Combat Bots Only 4 | . 1 . 4 3 . 1 Max Kills in Single Turn 3 | 2 1 . 3 3 . 1 Gunslinging . | . . . . . . . Exploded 2 | . . . 2 2 . . Melee . | . . . . . . . Uniques/NPCs Destroyed . | . . . . . . . Combat | -11 -10 -10 -9 -8 -7 -7 -------- Run | Yrd Mat Min Mat Mat Fac DSF Hostile Shots Fired 344 | . 12 . 90 20 . 222 Missed 100 | . 4 . 32 5 . 59 Damage Taken 3828 | . 89 . 699 268 . 2772 Core 883 | . 23 . 121 28 . 711 Absorbed by Shields . | . . . . . . . Core Remaining (%) 88 | 100 . 90 69 94 . . Volleys Fired 89 | 6 8 1 35 11 . 28 Largest 2 | 2 2 2 2 2 . 2 Hottest 93 | 60 60 60 66 69 . 93 Shots Fired 161 | 12 16 2 63 22 . 46 Gun 98 | 12 16 2 34 . . 34 Cannon 7 | . . . . . . 7 Launcher 56 | . . . 29 22 . 5 Special . | . . . . . . . Kinetic 83 | 6 8 1 34 . . 34 Thermal 22 | 6 8 1 . . . 7 Explosive . | . . . . . . . Electromagnetic 56 | . . . 29 22 . 5 Robot Hit Streak 11 | 5 8 1 11 5 . 9 Robot Miss Streak 4 | 4 1 1 3 3 . 2 Penetration Max 1 | . . . . . . 1 Secondary Targets . | . . . . . . . Shots Hit Robots 104 | 7 10 1 36 13 . 37 Core Hits 64 | 2 6 1 38 11 . 6 Critical Kills . | . . . . . . . Critical Parts Destroyed 1 | . . . . . . 1 Critical Strikes 1 | . . . . . . 1 Destroy 1 | . . . . . . 1 Melee Attacks 1 | . . . 1 . . . Impact 1 | . . . 1 . . . Slashing . | . . . . . . . Piercing . | . . . . . . . Sneak Attacks . | . . . . . . . Combat Hostiles . | . . . . . . . Follow-up Attacks . | . . . . . . . Damage Inflicted 3353 | 101 133 14 1700 571 . 834 Guns 1049 | 101 133 14 262 . . 539 Cannons 133 | . . . . . . 133 Explosions 2150 | . . . 1417 571 . 162 Melee 21 | . . . 21 . . . Ramming . | . . . . . . . Kinetic 936 | 57 64 14 262 . . 539 Thermal 351 | 44 69 . 64 41 . 133 Explosive 204 | . . . 204 . . . Electromagnetic 1841 | . . . 1149 530 . 162 Impact 21 | . . . 21 . . . Slashing . | . . . . . . . Piercing . | . . . . . . . Highest Corruption 3 | . . . . 3 . 2 Average Corruption 2 | . . . . 3 . 1 Corruption Purged . | . . . . . . . Corruption Blocked . | . . . . . . . Effects 2 | . . . . 1 . 1 Message Errors 2 | . . . . 1 . 1 Overload Shots . | . . . . . . . Overflow Damage 91 | . . . 90 1 . . Projectiles . | . . . . . . . Explosions 90 | . . . 89 1 . . Melee 1 | . . . 1 . . . Knockbacks . | . . . . . . . Impact . | . . . . . . . Kinetic . | . . . . . . . Secondary . | . . . . . . . Self-Inflicted Damage 131 | . . . 59 62 . 10 Shots 12 | . . . 5 6 . 1 Rammed . | . . . . . . . Targets Rammed . | . . . . . . . Kicked . | . . . . . . . Crushed . | . . . . . . . Highest Temperature 18 | . 12 . 18 . . 11 Average Temperature 8 | . 8 . 9 . . 10 Received Heat Transfer 858 | . 48 . 231 63 . 516 Siege Activations . | . . . . . . . Robots Corrupted 3 | . . . 1 2 . . Combat Hostiles 2 | . . . . 2 . . Parts Fried 8 | . . . 7 1 . . Impact Corruptions 1 | . . . 1 . . . Robots Melted . | . . . . . . . Combat Hostiles . | . . . . . . . Parts Melted . | . . . . . . . Heat Transferred 735 | 100 150 . 250 50 . 185 Parts Sabotaged . | . . . . . . . Parts Stolen . | . . . . . . . Parts Stripped . | . . . . . . . Power Chain Reactions 7 | . . . 5 1 . 1 Alert | -11 -10 -10 -9 -8 -7 -7 ------- Run | Yrd Mat Min Mat Mat Fac DSF Peak Influence 700 | 10 57 22 700 422 107 79 Initial 295 | . 6 22 . 295 102 74 Average 184 | 2 28 19 246 283 102 44 Maximum Alert Level 3 | . . . 3 2 . . Low Security (%) 54 | 100 100 100 51 7 100 100 Level 1 31 | . . . 19 80 . . Level 2 13 | . . . 29 11 . . Level 3 . | . . . . . . . Level 4 . | . . . . . . . Level 5 . | . . . . . . . High Security . | . . . . . . . Max Security . | . . . . . . . Squads Dispatched 7 | . 1 . 3 1 . 2 Investigation . | . . . . . . . Extermination . | . . . . . . . Reinforcement 7 | . 1 . 3 1 . 2 Assault . | . . . . . . . Garrison . | . . . . . . . Intercept . | . . . . . . . Searches Triggered 1 | . . . 1 . . . Construction Impeded . | . . . . . . . Haulers Reinforced . | . . . . . . . Active Scanning Responses . | . . . . . . . Cargo Convoy Interrupts . | . . . . . . . Stealth | -11 -10 -10 -9 -8 -7 -7 --------- Run | Yrd Mat Min Mat Mat Fac DSF Distress Signals 3 | . 1 . 2 . . . Communications Jammed . | . . . . . . . Distress Signals . | . . . . . . . Times Spotted 57 | . 6 . 33 10 . 8 Peak Tracking Total 6 | . 3 . 5 3 . 6 Tactical Retreats 4 | . . . 2 1 . 1 Traps | -11 -10 -10 -9 -8 -7 -7 ------- Run | Yrd Mat Min Mat Mat Fac DSF Traps Triggered . | . . . . . . . Indirectly . | . . . . . . . Trap Hack Attempts . | . . . . . . . Triggered . | . . . . . . . Disarmed . | . . . . . . . Reprogrammed . | . . . . . . . Reused . | . . . . . . . Traps Extracted . | . . . . . . . Installed . | . . . . . . . Triggered . | . . . . . . . Machines | -11 -10 -10 -9 -8 -7 -7 ---------- Run | Yrd Mat Min Mat Mat Fac DSF Machines Disabled 2 | . . . 2 . . . Max in Single Turn 1 | . . . 1 . . . Machines Repaired . | . . . . . . . Machines Dismantled . | . . . . . . . Machines Sabotaged . | . . . . . . . Overloaded Fab Kills . | . . . . . . . Hacking | -11 -10 -10 -9 -8 -7 -7 --------- Run | Yrd Mat Min Mat Mat Fac DSF Machines Accessed 2 | . . . 1 . 1 . Terminals 2 | . . . 1 . 1 . Fabricators . | . . . . . . . Repair Stations . | . . . . . . . Recycling Units . | . . . . . . . Scanalyzers . | . . . . . . . Garrison Access . | . . . . . . . Total Hacks 3 | . . . 1 . 2 . Successful 1 | . . . . . 1 . Failed 2 | . . . 1 . 1 . Catastrophic 1 | . . . 1 . . . Database Lockouts . | . . . . . . . Manual 1 | . . . 1 . . . Terminals 3 | . . . 1 . 2 . Fabricators . | . . . . . . . Repair Stations . | . . . . . . . Recycling Units . | . . . . . . . Scanalyzers . | . . . . . . . Garrison Access . | . . . . . . . Terminal Hacks 1 | . . . . . 1 . Open DSF 1 | . . . . . 1 . Fabricator Hacks . | . . . . . . . Repair Station Hacks . | . . . . . . . Recycling Unit Hacks . | . . . . . . . Scanalyzer . | . . . . . . . Garrison Access Hacks . | . . . . . . . Unauthorized Hacks . | . . . . . . . Terminals . | . . . . . . . Fabricators . | . . . . . . . Repair Stations . | . . . . . . . Recycling Units . | . . . . . . . Scanalyzers . | . . . . . . . Garrison Access . | . . . . . . . Data Cores Recovered . | . . . . . . . Used . | . . . . . . . Hacking Detections 2 | . . . 1 . 1 . Full Trace Events . | . . . . . . . Feedback Events . | . . . . . . . Feedback Blocked . | . . . . . . . Robot Schematics Acquired . | . . . . . . . Robots Built . | . . . . . . . Authchips . | . . . . . . . Time . | . . . . . . . Total Robot Build Rating . | . . . . . . . Part Schematics Acquired . | . . . . . . . Parts Built . | . . . . . . . Authchips . | . . . . . . . Time . | . . . . . . . Total Part Build Rating . | . . . . . . . Parts Repaired . | . . . . . . . Time . | . . . . . . . Parts Recycled . | . . . . . . . Recycled Matter . | . . . . . . . Retrieved Matter . | . . . . . . . Retrieved Components . | . . . . . . . Parts Scanalyzed . | . . . . . . . Part Schematics Acquired . | . . . . . . . Parts Damaged . | . . . . . . . Bothacking | -11 -10 -10 -9 -8 -7 -7 ------------ Run | Yrd Mat Min Mat Mat Fac DSF Used RIF Installer . | . . . . . . . Robots Hacked . | . . . . . . . Non-combat . | . . . . . . . Combat . | . . . . . . . Robot Hacks Applied . | . . . . . . . Relay Couplers Released . | . . . . . . . Fabnet Peak Effective % . | . . . . . . . Robots Rewired . | . . . . . . . Allies Hacked . | . . . . . . . Hacks Repelled . | . . . . . . . Allies | -11 -10 -10 -9 -8 -7 -7 -------- Run | Yrd Mat Min Mat Mat Fac DSF Total Allies 3 | . . 3 . . . . Largest Group 3 | . . 3 3 . . . Highest-Rated Group 40 | . . 40 40 . . . Highest-Rated Ally 16 | . . 16 16 . . . Total Orders 4 | . . . 4 . . . FOLLOW 1 | . . . 1 . . . AID 3 | . . . 3 . . . Ally Attacks 41 | . . . 41 . . . Total Damage 380 | . . . 380 . . . Kills 6 | . . . 6 . . . Allies Corrupted . | . . . . . . . Allies Melted . | . . . . . . . Intel | -11 -10 -10 -9 -8 -7 -7 ------- Run | Yrd Mat Min Mat Mat Fac DSF Robot Analysis Total . | . . . . . . . Derelict Logs Recovered 1 | . . 1 . . . . Drone Launches . | . . . . . . . Drone Recoveries . | . . . . . . . Exploration | -11 -10 -10 -9 -8 -7 -7 ------------- Run | Yrd Mat Min Mat Mat Fac DSF Turns Passed 3224 | 158 192 462 1125 1006 115 166 Spaces Moved 1642 | 80 99 281 586 482 72 42 Core 13 | 10 . . . . . 3 Treads 1629 | 70 99 281 586 482 72 39 Legs . | . . . . . . . Wheels . | . . . . . . . Hover . | . . . . . . . Flight . | . . . . . . . Fastest Speed 50 | 50 160 160 160 155 156 150 Average Speed 159 | 155 160 160 160 157 156 165 Slowest Speed 240 | 200 160 160 160 160 156 240 Overloaded Moves . | . . . . . . . Propulsion Burnouts . | . . . . . . . Robots Hopped . | . . . . . . . Cave-ins Triggered . | . . . . . . . Exploration Rate (%) 27 | 5 15 65 40 33 3 34 Regions Visited 6 Branch Regions 1 Pre-discovered Areas 1 | . . 1 . . . . Known Exits Taken 2 | . . . . 1 1 . Unknown Exits Taken 4 | 1 1 1 1 . . . Scrap Searched 1 | . . 1 . . . . Spaces Dug . | . . . . . . . Terrain Destroyed 42 | . . . 38 2 . 2 Melee . | . . . . . . . Projectile . | . . . . . . . AOE 42 | . . . 38 2 . 2 Terrain Rammed . | . . . . . . . Walls Destroyed . | . . . . . . . Machines Disabled . | . . . . . . . Actions | -11 -10 -10 -9 -8 -7 -7 --------- Run | Yrd Mat Min Mat Mat Fac DSF Total 2091 | 99 118 292 711 707 75 89 Wait 223 | . 9 2 36 176 . . Move 1636 | 79 98 280 585 481 71 42 Hop . | . . . . . . . Pick Up 37 | 7 1 5 13 11 . . Fast Attach 28 | 7 . . 8 7 1 5 Attach 16 | . . . 2 3 2 9 Detach 2 | . . . 1 . 1 . Swap 19 | . . 2 10 3 . 4 Drop 40 | . 2 2 20 15 . 1 Fire 89 | 6 8 1 35 11 . 28 Melee 1 | . . . 1 . . . Ram . | . . . . . . . Kick . | . . . . . . . Crush . | . . . . . . . Escape Stasis . | . . . . . . . Rewire . | . . . . . . . Trap . | . . . . . . . Miscellaneous . | . . . . . . . Route ------- -11/Scrapyard -10/Materials -10/Mines -9/Materials -8/Materials (discovered 2 exits: *Fac / *Sto) -7/Factory -7/DSF History --------- Turn | Location | Event 12 | -11/Scrapyard | Discovered new exit (range 16) 159 | -11/Scrapyard | Entered Materials 318 | -10/Materials | Build established: Mutant 343 | -10/Materials | Discovered new exit (range 6) 351 | -10/Materials | Entered Mines 648 | -10/Mines | Assisted by bots powering up and referring to "LRC-V3" 791 | -10/Mines | Discovered new exit (range 9) 813 | -10/Mines | Entered Materials 813 | -9/Materials | Accompanied by 3 allies 813 | -9/Materials | Evolved 2 slots: Utility x2 1376 | -9/Materials | Build established: Scavenger-Mutant 1613 | -9/Materials | Search patrols dispatched 1736 | -9/Materials | Discovered new exit (range 15) 1938 | -9/Materials | Entered another Materials area 1938 | -8/Materials | Evolved 2 slots: Propulsion x2 2511 | -8/Materials | Discovered new exit (range 5) 2518 | -8/Materials | Identified exit to Storage 2902 | -8/Materials | Discovered new exit (range 15) 2923 | -8/Materials | Identified exit to Factory 2944 | -8/Materials | Entered Factory 2944 | -7/Factory | Evolved 2 slots: Utility x2 3058 | -7/Factory | Identified exit to DSF 3059 | -7/Factory | Entered DSF 3116 | -7/DSF | Additional patrols routed to DSF 3195 | -7/DSF | Core integrity fell below 50% 3210 | -7/DSF | Core integrity fell below 20% 3225 | -7/DSF | Destroyed by X-62 Marksman with Gauss Rifle Last Messages --------------- 03209_ Acquired Corrupted Imp. Deuterium Engine. 03209_ Integrated Corrupted Imp. Deuterium Engine (+1). 03209_ Penetrated by Slug. 03213_ XTTVY#S#Y K >JQGKEMS 03213_ Gauss Rifle destroyed. 03215_ Penetrated by Slug. 03215_ Slug penetrates H-61 Shepherd. 03216_ Penetrated by Slug. 03216_ Imp. Deuterium Engine destroyed. 03216_ Lgt. Treads blasted off. 03216_ Penetrated by Slug. 03217_ Slug penetrates H-61 Shepherd. 03217_ Adv. Weight Redist. System destroyed. 03218_ Slug penetrates Wall. 03219_ Penetrated by Slug. 03221_ Gauss Rifle destroyed. 03222_ Penetrated by Slug. 03222_ Knocked back. 03224_ Slug penetrates Wall. 03225_ Penetrated by Slug. Map ----- +----------------------------------------------------+ | ?????????????????????????????????????????????? | | ?????????????????????????????????????????????? | | ?????????????????????????????????????????????? | | ?????????????????????????????????????????????? | | ?????????????????????????????????????????????? | | ?????????????????????????????????????????????? | | ?????????????????????????????????????????????? | | ?????????????????????????????????????????????? | | ?????????????????????? ???????????? !????? | | ??????????????????????!! !=??????????? !????? | | ??????????????????????%=!!%??????????? !????? | | ??????????????????????#* =#??????????# !????? | | ????????????????????### ###????????# ##???? | | ?????????????????????!! !!#????????! ????? | | ????????????????????? ! !!?????????! ????? | | ?????????????????????? !??????????! ????? | | ????????????????????### ###???????## ##???? | | ????????????????????#!! !!#???????? #???? | | ????????????????????#!! !!#???????? #???? | | ?????????????#??#####!! !!########?# #????? | | ???????##????# ?# #?; ### #!!### ###??? | | ??????#"" ## # %##!! ## #!!## ""###? | | ??????""% % Hg% ! %![ """""? | | ???????"" % =x! *!=[ %%""##?? | | ???????""""""" # %;!xg//% # #!!##%%%%"#??? | | ?????????"""##??#####@!/// #########"%%""#??? | | ???????????????????#;## # ###???????##"####??? | | ???????????????????##?#####??????????#"#?????? | | ?????????????????????????????????????#""?????? | | ??????????????????????????????????????##?????? | | ?????????????????????????????????????????????? | | ?????????????????????????????????????????????? | | ?????????????????????????????????????????????? | | ?????????????????????????????????????????????? | | | | | | | | | | | | | | | | | | | | | | | | | | | | | | | | | +----------------------------------------------------+ Best States ------------- Heat Dissipation 44 Energy Generation 18 Energy Capacity 300 Matter Stores 300 Matter Capacity 500 Sight Range 16 Robot Scan Range 15 Terrain Scan Range 16 Terrain Scan Density 10 Additional Mass Support 9 Armor Coverage 150 Evasion (%) 40 Recoil Reduction 4 Salvage Targeting 4 Item Schematics ----------------- None Robot Schematics ------------------ None Fabricated ------------ Nothing Alien Tech Used ----------------- None Achievements -------------- None Challenges ------------ None Game ------ Seed BombDeliveryLog Manual? 0 Play Time 00:24:41 Cumulative 34.8 hours Start 2024.04.17 @ 14:32:34 End 2024.04.17 @ 15:10:44 Sessions 1 Manual Loads 0 Difficulty Rogue Special Mode None Game No. 67 Rogue 62 Adventurer 5 Explorer 0 Win Type - Total 0 Types 0/0/0/0/0/0/0/0/0 Lore% 11 Gallery% 44 Achievement% 30 Wizard Run 0 Options --------- Layout 0 ASCII 0 Keyboard 0 Movement Mouse Keybinds 0 Fullscreen 2 Font 24/Smallcaps Map View 38x25 Zoom Use 23% Tactical HUD 1 Map Filters NONE Filters NONE Steam 1 RUN: b96f8e56-c237-429d-a613-ec9857320d85